[Event "17th Delhi GM Open 2019"]
[Site "Delhi"]
[Date "2019.01.12"]
[Round "6"]
[White "Rozum, Ivan"]
[Black "Girish, A. Koushik"]
[Result "1/2-1/2"]
[ECO "D35"]
[WhiteElo "2589"]
[BlackElo "2411"]
[Annotator "ChessBase"]
[PlyCount "121"]
[EventDate "2019.01.09"]
[EventType "swiss"]
[EventCountry "IND"]
[SourceTitle "playchess.com"]
[Source "ChessBase"]
[SourceQuality "1"]
[TimeControl "5400+30"]

1. d4 {[%emt 0:00:00]} Nf6 {[%emt 0:00:04]} 2. c4 {[%emt 0:00:00]} e6 {[%emt 0:00:46]} 3. Nc3 {[%emt 0:00:57]} d5 {[%emt 0:01:03]} 4. cxd5 {[%emt 0:00:36]} exd5 {[%emt 0:00:18]} 5. Bg5 {[%emt 0:00:04]} c6 {[%emt 0:00:20]} 6. e3 {[%emt 0:00:34]} Be7 {[%emt 0:01:46]} 7. Bd3 {[%emt 0:00:08]} Nbd7 {[%emt 0:00:39]} 8. Qc2 {[%emt 0:00:24]} O-O {[%emt 0:00:50]} 9. Nf3 {[%emt 0:01:07]} Re8 {[%emt 0:00:33]} 10. O-O {[%emt 0:00:06]} Nf8 {[%emt 0:04:33]} 11. Rae1 {[%emt 0:04:39]} g6 {[%emt 0:06:53]} 12. h3 {[%emt 0:07:14]} Ne6 {[%emt 0:02:06]} 13. Bh6 {[%emt 0:00:09]} Bf8 {[%emt 0:01:50]} 14. Bxf8 {[%emt 0:00:27]} Rxf8 {[%emt 0:00:23]} 15. Ne5 {[%emt 0:01:40]} c5 {[%emt 0:11:26]} 16. dxc5 {[%emt 0:01:27]} Nxc5 {[%emt 0:00:38]} 17. Rd1 {[%emt 0:01:41]} Qe7 {[%emt 0:01:49]} 18. Nf3 {[%emt 0:00:34]} Bd7 {[%emt 0:06:37]} 19. Nd4 {[%emt 0:01:54]} Rac8 {[%emt 0:00:29]} 20. Qb1 {[%emt 0:00:40]} a6 {[%emt 0:00:40]} 21. Bc2 {[%emt 0:01:17]} Rfd8 {[%emt 0:15:21]} 22. Nb3 {[%emt 0:02:22]} Nxb3 {[%emt 0:04:29]} 23. Bxb3 {[%emt 0:00:21]} Bf5 {[%emt 0:00:42]} 24. Qa1 {[%emt 0:01:47]} Qe5 {[%emt 0:08:04]} 25. Rd4 {[%emt 0:02:09]} Rd6 {[%emt 0:00:35]} 26. Rfd1 {[%emt 0:03:21]} Rcd8 {[%emt 0:00:13]} 27. R1d2 {[%emt 0:01:46]} Ne4 {[%emt 0:12:26]} 28. Rxd5 {[%emt 0:04:43]} Rxd5 {[%emt 0:00:22]} 29. Rxd5 {[%emt 0:00:04]} Rxd5 {[%emt 0:00:05]} 30. Nxd5 {[%emt 0:00:04]} Nd2 {[%emt 0:02:06]} 31. Nc3 {[%emt 0:04:02]} Nxb3 {[%emt 0:02:43]} 32. axb3 {[%emt 0:00:04]} Qd6 {[%emt 0:00:17]} 33. Qa4 {[%emt 0:06:08]} Bc2 {[%emt 0:06:15]} 34. Qc4 {[%emt 0:01:59]} b5 {[%emt 0:03:19]} 35. Qd5 {[%emt 0:01:05]} Qxd5 {[%emt 0:01:00]} 36. Nxd5 {[%emt 0:00:02]} Bxb3 {[%emt 0:00:07]} 37. Nc7 {[%emt 0:00:06]} a5 {[%emt 0:00:05]} 38. Nxb5 {[%emt 0:00:05]} Kf8 {[%emt 0:00:03]} 39. f3 {[%emt 0:04:52]} Ke7 {[%emt 0:00:15]} 40. Nd4 {[%emt 0:00:07]} Ba4 {[%emt 0:00:56]} 41. Kf2 {[%emt 0:01:43]} Kd6 {[%emt 0:00:07]} 42. Ke2 {[%emt 0:00:23]} Kc5 {[%emt 0:00:07]} 43. Kd2 {[%emt 0:00:28]} Kc4 {[%emt 0:00:35]} 44. h4 {[%emt 0:01:00]} Bd7 {[%emt 0:01:10]} 45. g4 {[%emt 0:01:07]} h6 {[%emt 0:01:07]} 46. g5 {[%emt 0:00:42]} hxg5 {[%emt 0:00:11]} 47. hxg5 {[%emt 0:00:04]} a4 {[%emt 0:00:09]} 48. Kc2 {[%emt 0:01:18]} Bh3 {[%emt 0:03:29]} 49. Nc6 {[%emt 0:01:34]} Bf5+ {[%emt 0:03:28]} 50. e4 {[%emt 0:16:10]} Bh3 {[%emt 0:00:13]} 51. Nd8 {[%emt 0:00:13]} Bg2 {[%emt 0:00:31]} 52. Nxf7 {[%emt 0:00:46]} Kd4 {[%emt 0:00:04]} 53. e5 {[%emt 0:00:53]} Bxf3 {[%emt 0:00:11]} 54. e6 {[%emt 0:00:03]} Bc6 {[%emt 0:00:09]} 55. Kd2 {[%emt 0:01:51]} Kd5 {[%emt 0:00:52]} 56. Kc3 {[%emt 0:02:39]} Be8 {[%emt 0:00:11]} 57. Kb4 {[%emt 0:03:52]} Kxe6 {[%emt 0:00:16]} 58. Nh8 {[%emt 0:00:07]} Kf5 {[%emt 0:00:08]} 59. Nxg6 {[%emt 0:00:06]} Kxg6 {[%emt 0:00:03]} 60. b3 {[%emt 0:00:07]} axb3 {[%emt 0:00:04]} 61. Kxb3 {[%emt 0:01:13]} 1/2-1/2

[Event "17th Delhi GM Open 2019"]
[Site "Delhi"]
[Date "2019.01.12"]
[Round "6"]
[White "Paichadze, Luka"]
[Black "Mitrabha, Guha"]
[Result "1/2-1/2"]
[ECO "C00"]
[WhiteElo "2583"]
[BlackElo "2371"]
[Annotator "ChessBase"]
[PlyCount "61"]
[EventDate "2019.01.09"]
[EventType "swiss"]
[EventCountry "IND"]
[SourceTitle "playchess.com"]
[Source "ChessBase"]
[SourceQuality "1"]
[TimeControl "5400+30"]

1. e4 {[%emt 0:00:00]} e6 {[%emt 0:06:58]} 2. b3 {[%emt 0:00:00]} d5 {[%emt 0:00:13]} 3. Bb2 {[%emt 0:00:00]} Nf6 {[%emt 0:00:16]} 4. e5 {[%emt 0:00:31]} Nfd7 {[%emt 0:01:47]} 5. f4 {[%emt 0:00:05]} c5 {[%emt 0:00:04]} 6. Qg4 {[%emt 0:01:21]} Nc6 {[%emt 0:02:27]} 7. Nf3 {[%emt 0:00:27]} Nb6 {[%emt 0:00:32]} 8. Bb5 {[%emt 0:00:53]} Qc7 {[%emt 0:00:38]} 9. O-O {[%emt 0:00:42]} Bd7 {[%emt 0:00:20]} 10. Bxc6 {[%emt 0:06:26]} Qxc6 {[%emt 0:00:10]} 11. d4 {[%emt 0:01:25]} O-O-O {[%emt 0:04:43]} 12. Nbd2 {[%emt 0:10:12]} c4 {[%emt 0:01:22]} 13. Bc3 {[%emt 0:00:59]} h6 {[%emt 0:04:26]} 14. a4 {[%emt 0:02:04]} Kb8 {[%emt 0:02:09]} 15. Ba5 {[%emt 0:10:38]} Rc8 {[%emt 0:00:41]} 16. Qg3 {[%emt 0:02:35]} f5 {[%emt 0:04:04]} 17. Nh4 {[%emt 0:06:09]} Be8 {[%emt 0:02:14]} 18. Ng6 {[%emt 0:01:08]} Bxg6 {[%emt 0:00:19]} 19. Qxg6 {[%emt 0:00:04]} cxb3 {[%emt 0:01:52]} 20. cxb3 {[%emt 0:00:32]} Qe8 {[%emt 0:00:24]} 21. Qg3 {[%emt 0:01:12]} g5 {[%emt 0:00:21]} 22. Nf3 {[%emt 0:03:09]} Be7 {[%emt 0:01:38]} 23. Rfc1 {[%emt 0:02:15]} Qh5 {[%emt 0:02:58]} 24. Rxc8+ {[%emt 0:01:22]} Rxc8 {[%emt 0:00:15]} 25. Bd2 {[%emt 0:00:26]} g4 {[%emt 0:02:01]} 26. Ne1 {[%emt 0:01:22]} Qe8 {[%emt 0:00:10]} 27. Nd3 {[%emt 0:04:41]} h5 {[%emt 0:01:14]} 28. Qe1 {[%emt 0:01:10]} Nd7 {[%emt 0:06:12]} 29. Rc1 {[%emt 0:10:33]} Rxc1 {[%emt 0:00:24]} 30. Qxc1 {[%emt 0:00:11]} Qc8 {[%emt 0:00:16]} 31. Qxc8+ {[%emt 0:00:22]} 1/2-1/2

[Event "17th Delhi GM Open 2019"]
[Site "Delhi"]
[Date "2019.01.12"]
[Round "6"]
[White "Gupta, Abhijeet"]
[Black "Saravana, Krishnan P."]
[Result "1-0"]
[ECO "D17"]
[WhiteElo "2581"]
[BlackElo "2346"]
[Annotator "ChessBase"]
[PlyCount "69"]
[EventDate "2019.01.09"]
[EventType "swiss"]
[EventCountry "IND"]
[SourceTitle "playchess.com"]
[Source "ChessBase"]
[SourceQuality "1"]
[TimeControl "5400+30"]

1. d4 {[%emt 0:00:00]} d5 {[%emt 0:01:14]} 2. c4 {[%emt 0:00:03]} c6 {[%emt 0:01:05]} 3. Nf3 {[%emt 0:00:12]} Nf6 {[%emt 0:00:11]} 4. Nc3 {[%emt 0:00:05]} dxc4 {[%emt 0:01:14]} 5. a4 {[%emt 0:00:21]} Bf5 {[%emt 0:00:09]} 6. Ne5 {[%emt 0:00:07]} Nbd7 {[%emt 0:00:11]} 7. Nxc4 {[%emt 0:00:04]} Nb6 {[%emt 0:00:11]} 8. Ne5 {[%emt 0:00:05]} a5 {[%emt 0:00:07]} 9. e3 {[%emt 0:00:06]} g6 {[%emt 0:00:42]} 10. Bd3 {[%emt 0:00:07]} Bxd3 {[%emt 0:00:29]} 11. Nxd3 {[%emt 0:00:05]} Bg7 {[%emt 0:05:01]} 12. Qb3 {[%emt 0:03:00]} O-O {[%emt 0:01:53]} 13. O-O {[%emt 0:01:03]} Nfd7 {[%emt 0:02:36]} 14. Rd1 {[%emt 0:00:42]} Qc7 {[%emt 0:01:38]} 15. Bd2 {[%emt 0:00:28]} e5 {[%emt 0:04:21]} 16. Rac1 {[%emt 0:00:15]} exd4 {[%emt 0:05:00]} 17. exd4 {[%emt 0:01:24]} Qd6 {[%emt 0:08:06]} 18. Bf4 {[%emt 0:08:42]} Qe6 {[%emt 0:01:33]} 19. d5 {[%emt 0:01:34]} cxd5 {[%emt 0:02:59]} 20. Nb5 {[%emt 0:00:12]} Rac8 {[%emt 0:08:58]} 21. Rxc8 {[%emt 0:04:16]} Rxc8 {[%emt 0:07:24]} 22. Nd6 {[%emt 0:01:58]} Rc4 {[%emt 0:08:01]} 23. Re1 {[%emt 0:03:01]} Qxe1+ {[%emt 0:07:21]} 24. Nxe1 {[%emt 0:00:04]} Rxf4 {[%emt 0:00:05]} 25. Nd3 {[%emt 0:03:25]} Rxa4 {[%emt 0:02:29]} 26. g3 {[%emt 0:00:07]} Ra1+ {[%emt 0:04:07]} 27. Kg2 {[%emt 0:00:04]} a4 {[%emt 0:01:34]} 28. Qb4 {[%emt 0:14:33]} Rd1 {[%emt 0:04:54]} 29. Nc5 {[%emt 0:04:22]} Bf8 {[%emt 0:07:23]} 30. Nxd7 {[%emt 0:00:06]} Nxd7 {[%emt 0:09:21]} 31. Qxa4 {[%emt 0:00:38]} Re1 {[%emt 0:00:45]} 32. Qxd7 {[%emt 0:00:49]} Re7 {[%emt 0:00:10]} 33. Qd8 {[%emt 0:00:50]} b6 {[%emt 0:00:17]} 34. Nc8 {[%emt 0:00:41]} Re6 {[%emt 0:00:58]} 35. Nxb6 {[%emt 0:00:21]} 1-0

[Event "17th Delhi GM Open 2019"]
[Site "Delhi"]
[Date "2019.01.12"]
[Round "6"]
[White "Ghosh, Diptayan"]
[Black "Gukesh D"]
[Result "1/2-1/2"]
[ECO "E62"]
[WhiteElo "2544"]
[BlackElo "2497"]
[Annotator "ChessBase"]
[PlyCount "39"]
[EventDate "2019.01.09"]
[EventType "swiss"]
[EventCountry "IND"]
[SourceTitle "playchess.com"]
[Source "ChessBase"]
[SourceQuality "1"]
[TimeControl "5400+30"]

1. d4 {[%emt 0:00:00]} Nf6 {[%emt 0:00:00]} 2. c4 {[%emt 0:00:00]} g6 {[%emt 0:00:00]} 3. Nf3 {[%emt 0:00:03]} Bg7 {[%emt 0:00:00]} 4. g3 {[%emt 0:00:03]} O-O {[%emt 0:00:00]} 5. Bg2 {[%emt 0:00:05]} d6 {[%emt 0:00:04]} 6. O-O {[%emt 0:00:06]} Nc6 {[%emt 0:00:58]} 7. Nc3 {[%emt 0:00:06]} Bg4 {[%emt 0:00:52]} 8. Be3 {[%emt 0:05:49]} e5 {[%emt 0:14:00]} 9. dxe5 {[%emt 0:01:50]} dxe5 {[%emt 0:00:15]} 10. Qa4 {[%emt 0:09:01]} Nd7 {[%emt 0:14:14]} 11. Rfd1 {[%emt 0:05:21]} Qc8 {[%emt 0:00:18]} 12. Nd5 {[%emt 0:08:42]} Re8 {[%emt 0:00:39]} 13. c5 {[%emt 0:10:49]} Bxf3 {[%emt 0:16:30]} 14. exf3 {[%emt 0:04:56]} Nd4 {[%emt 0:01:43]} 15. Qc4 {[%emt 0:10:25]} c6 {[%emt 0:05:01]} 16. Nc3 {[%emt 0:01:27]} b5 {[%emt 0:10:53]} 17. cxb6 {[%emt 0:01:19]} Nxb6 {[%emt 0:00:27]} 18. Qf1 {[%emt 0:01:55]} Nc2 {[%emt 0:01:21]} 19. Rac1 {[%emt 0:00:35]} Nxe3 {[%emt 0:00:08]} 20. fxe3 {[%emt 0:00:11]} 1/2-1/2

[Event "17th Delhi GM Open 2019"]
[Site "Delhi"]
[Date "2019.01.12"]
[Round "6"]
[White "Deepan Chakkravarthy J."]
[Black "Popov, Ivan"]
[Result "1/2-1/2"]
[ECO "B13"]
[WhiteElo "2543"]
[BlackElo "2588"]
[Annotator "ChessBase"]
[PlyCount "69"]
[EventDate "2019.01.09"]
[EventType "swiss"]
[EventCountry "IND"]
[SourceTitle "playchess.com"]
[Source "ChessBase"]
[SourceQuality "1"]
[TimeControl "5400+30"]

1. e4 {[%emt 0:00:43]} c6 {[%emt 0:00:00]} 2. d4 {[%emt 0:02:47]} d5 {[%emt 0:00:00]} 3. exd5 {[%emt 0:03:24]} cxd5 {[%emt 0:00:13]} 4. Nf3 {[%emt 0:00:26]} Nf6 {[%emt 0:00:33]} 5. Ne5 {[%emt 0:00:12]} g6 {[%emt 0:00:29]} 6. Bd3 {[%emt 0:01:46]} Bg7 {[%emt 0:00:38]} 7. O-O {[%emt 0:00:22]} Nc6 {[%emt 0:00:28]} 8. Nf3 {[%emt 0:12:43]} O-O {[%emt 0:02:36]} 9. c3 {[%emt 0:00:23]} Bf5 {[%emt 0:01:26]} 10. Bxf5 {[%emt 0:00:48]} gxf5 {[%emt 0:00:03]} 11. Bf4 {[%emt 0:00:18]} e6 {[%emt 0:03:03]} 12. h3 {[%emt 0:01:53]} Ne4 {[%emt 0:00:46]} 13. Nbd2 {[%emt 0:00:25]} Kh8 {[%emt 0:00:51]} 14. Kh2 {[%emt 0:03:50]} Ne7 {[%emt 0:05:54]} 15. Ne5 {[%emt 0:12:14]} Ng6 {[%emt 0:05:14]} 16. Nxg6+ {[%emt 0:10:24]} hxg6 {[%emt 0:00:25]} 17. Nxe4 {[%emt 0:02:16]} fxe4 {[%emt 0:01:00]} 18. f3 {[%emt 0:03:00]} f5 {[%emt 0:03:11]} 19. Qd2 {[%emt 0:06:24]} Rc8 {[%emt 0:05:42]} 20. Rad1 {[%emt 0:00:29]} Kh7 {[%emt 0:00:33]} 21. Qe3 {[%emt 0:00:52]} Rf7 {[%emt 0:15:44]} 22. Rd2 {[%emt 0:03:19]} Qe7 {[%emt 0:05:28]} 23. a4 {[%emt 0:09:14]} Bf6 {[%emt 0:10:43]} 24. fxe4 {[%emt 0:01:42]} dxe4 {[%emt 0:00:20]} 25. g4 {[%emt 0:00:42]} e5 {[%emt 0:24:19]} 26. dxe5 {[%emt 0:01:14]} Bxe5 {[%emt 0:00:02]} 27. Rd5 {[%emt 0:01:44]} Bxf4+ {[%emt 0:00:42]} 28. Rxf4 {[%emt 0:00:11]} Rd8 {[%emt 0:00:19]} 29. Rxd8 {[%emt 0:04:32]} Qxd8 {[%emt 0:00:02]} 30. gxf5 {[%emt 0:00:19]} gxf5 {[%emt 0:00:33]} 31. Qf2 {[%emt 0:03:42]} Rd7 {[%emt 0:00:56]} 32. Rxf5 {[%emt 0:03:38]} Rd2 {[%emt 0:00:19]} 33. Rf7+ {[%emt 0:00:03]} Kg6 {[%emt 0:01:25]} 34. Rf6+ {[%emt 0:00:02]} Kg5 {[%emt 0:00:46]} 35. Rf5+ {[%emt 0:00:22]} 1/2-1/2

[Event "17th Delhi GM Open 2019"]
[Site "Delhi"]
[Date "2019.01.12"]
[Round "6"]
[White "Tran, Tuan Minh"]
[Black "Narayanan.S.L"]
[Result "1/2-1/2"]
[ECO "D85"]
[WhiteElo "2541"]
[BlackElo "2575"]
[Annotator "ChessBase"]
[PlyCount "62"]
[EventDate "2019.01.09"]
[EventType "swiss"]
[EventCountry "IND"]
[SourceTitle "playchess.com"]
[Source "ChessBase"]
[SourceQuality "1"]
[TimeControl "5400+30"]

1. d4 {[%emt 0:00:00]} Nf6 {[%emt 0:00:00]} 2. c4 {[%emt 0:00:00]} g6 {[%emt 0:00:00]} 3. Nc3 {[%emt 0:00:02]} d5 {[%emt 0:00:00]} 4. cxd5 {[%emt 0:00:08]} Nxd5 {[%emt 0:00:00]} 5. e4 {[%emt 0:00:05]} Nxc3 {[%emt 0:00:03]} 6. bxc3 {[%emt 0:00:05]} Bg7 {[%emt 0:00:04]} 7. Nf3 {[%emt 0:00:09]} c5 {[%emt 0:00:09]} 8. Be3 {[%emt 0:00:06]} Qa5 {[%emt 0:01:25]} 9. Qd2 {[%emt 0:00:07]} Nc6 {[%emt 0:06:11]} 10. Rc1 {[%emt 0:04:23]} cxd4 {[%emt 0:03:02]} 11. cxd4 {[%emt 0:00:28]} Qxd2+ {[%emt 0:00:13]} 12. Kxd2 {[%emt 0:00:07]} O-O {[%emt 0:00:05]} 13. Bb5 {[%emt 0:02:41]} Rd8 {[%emt 0:02:12]} 14. Bxc6 {[%emt 0:02:11]} bxc6 {[%emt 0:00:06]} 15. Rc5 {[%emt 0:01:11]} f5 {[%emt 0:15:26]} 16. Rhc1 {[%emt 0:14:16]} Be6 {[%emt 0:25:04]} 17. Ne5 {[%emt 0:11:01]} f4 {[%emt 0:00:48]} 18. Bxf4 {[%emt 0:00:09]} Rxd4+ {[%emt 0:00:05]} 19. Ke3 {[%emt 0:00:11]} Ra4 {[%emt 0:00:06]} 20. Rxc6 {[%emt 0:00:36]} Ra3+ {[%emt 0:00:47]} 21. Ke2 {[%emt 0:14:07]} Rxa2+ {[%emt 0:00:45]} 22. Kf1 {[%emt 0:00:08]} Bxe5 {[%emt 0:04:45]} 23. Bxe5 {[%emt 0:00:09]} Kf7 {[%emt 0:00:07]} 24. Rc7 {[%emt 0:08:53]} Rd8 {[%emt 0:00:57]} 25. Bf4 {[%emt 0:07:15]} a5 {[%emt 0:03:47]} 26. R1c2 {[%emt 0:02:32]} Rxc2 {[%emt 0:04:43]} 27. Rxc2 {[%emt 0:00:01]} a4 {[%emt 0:00:12]} 28. Rc3 {[%emt 0:00:49]} Rc8 {[%emt 0:03:02]} 29. Rxc8 {[%emt 0:01:12]} Bxc8 {[%emt 0:00:04]} 30. Bc1 {[%emt 0:00:22]} Ba6+ {[%emt 0:00:14]} 31. Ke1 {[%emt 0:00:13]} e5 {[%emt 0:01:17]} 1/2-1/2

[Event "17th Delhi GM Open 2019"]
[Site "Delhi"]
[Date "2019.01.12"]
[Round "6"]
[White "Mosadeghpour, Masoud"]
[Black "Debashis, Das"]
[Result "1/2-1/2"]
[ECO "C42"]
[WhiteElo "2517"]
[BlackElo "2538"]
[Annotator "ChessBase"]
[PlyCount "40"]
[EventDate "2019.01.09"]
[EventType "swiss"]
[EventCountry "IND"]
[SourceTitle "playchess.com"]
[Source "ChessBase"]
[SourceQuality "1"]
[TimeControl "5400+30"]

1. e4 e5 2. Nf3 Nf6 3. Nxe5 d6 4. Nf3 Nxe4 5. d4 d5 6. Bd3 Nc6 7. O-O Be7 8. c4 Nb4 9. Be2 O-O 10. Nc3 Bf5 11. a3 Nxc3 12. bxc3 Nc6 13. Re1 Re8 14. cxd5 Qxd5 15. Bf4 Rac8 16. Bd3 Qd7 17. Qb1 Bxd3 18. Qxd3 b6 19. a4 Bf6 20. Qb5 Red8 1/2-1/2

[Event "17th Delhi GM Open 2019"]
[Site "Delhi"]
[Date "2019.01.12"]
[Round "6"]
[White "Movsziszian, Karen"]
[Black "Wagh Suyog"]
[Result "1-0"]
[ECO "A00"]
[WhiteElo "2514"]
[BlackElo "2263"]
[Annotator "ChessBase"]
[PlyCount "54"]
[EventDate "2019.01.09"]
[EventType "swiss"]
[EventCountry "IND"]
[SourceTitle "playchess.com"]
[Source "ChessBase"]
[SourceQuality "1"]
[TimeControl "5400+30"]

1. g3 {[%emt 0:00:00]} d5 {[%emt 0:00:00]} 2. Bg2 {[%emt 0:00:00]} c6 {[%emt 0:05:32]} 3. f4 {[%emt 0:01:54]} g6 {[%emt 0:08:03]} 4. Nf3 {[%emt 0:00:32]} Bg7 {[%emt 0:00:06]} 5. O-O {[%emt 0:00:13]} Nf6 {[%emt 0:00:28]} 6. d3 {[%emt 0:01:06]} O-O {[%emt 0:00:29]} 7. Kh1 {[%emt 0:00:37]} c5 {[%emt 0:03:48]} 8. c3 {[%emt 0:00:06]} Nc6 {[%emt 0:03:13]} 9. Na3 {[%emt 0:00:03]} b6 {[%emt 0:01:55]} 10. Qa4 {[%emt 0:00:08]} Bb7 {[%emt 0:01:12]} 11. e4 {[%emt 0:00:02]} e6 {[%emt 0:06:36]} 12. e5 {[%emt 0:01:05]} Nd7 {[%emt 0:00:18]} 13. Re1 {[%emt 0:02:37]} a6 {[%emt 0:00:06]} 14. Qd1 {[%emt 0:00:36]} b5 {[%emt 0:01:10]} 15. Nc2 {[%emt 0:00:34]} a5 {[%emt 0:04:26]} 16. Be3 {[%emt 0:02:23]} b4 {[%emt 0:03:09]} 17. Bf2 {[%emt 0:01:52]} Re8 {[%emt 0:03:11]} 18. h4 {[%emt 0:11:23]} Rb8 {[%emt 0:19:13]} 19. c4 {[%emt 0:03:41]} Ne7 {[%emt 0:07:21]} 20. h5 {[%emt 0:05:33]} Qc7 {[%emt 0:01:45]} 21. hxg6 {[%emt 0:00:50]} Nxg6 {[%emt 0:02:38]} 22. cxd5 {[%emt 0:03:48]} exd5 {[%emt 0:01:40]} 23. d4 {[%emt 0:03:20]} cxd4 {[%emt 0:00:35]} 24. Ncxd4 {[%emt 0:00:03]} Ba6 {[%emt 0:01:26]} 25. Rc1 {[%emt 0:05:04]} Qb7 {[%emt 0:00:27]} 26. Nf5 {[%emt 0:00:54]} Bf8 {[%emt 0:00:08]} 27. Ng5 {[%emt 0:00:08]} Nb6 1-0

[Event "17th Delhi GM Open 2019"]
[Site "Delhi"]
[Date "2019.01.12"]
[Round "6"]
[White "Gajek, Radoslaw"]
[Black "Kulkarni, Vinayak"]
[Result "1/2-1/2"]
[ECO "A30"]
[WhiteElo "2481"]
[BlackElo "2207"]
[Annotator "ChessBase"]
[PlyCount "115"]
[EventDate "2019.01.09"]
[EventType "swiss"]
[EventCountry "IND"]
[SourceTitle "playchess.com"]
[Source "ChessBase"]
[SourceQuality "1"]
[TimeControl "5400+30"]

1. c4 {[%emt 0:00:00]} c5 {[%emt 0:04:09]} 2. Nf3 {[%emt 0:00:00]} Nc6 {[%emt 0:00:13]} 3. d4 {[%emt 0:00:00]} cxd4 {[%emt 0:00:18]} 4. Nxd4 {[%emt 0:00:00]} g6 {[%emt 0:00:25]} 5. e4 {[%emt 0:00:01]} Nf6 {[%emt 0:00:33]} 6. Nc3 {[%emt 0:00:08]} d6 {[%emt 0:00:14]} 7. Be2 {[%emt 0:00:07]} Nxd4 {[%emt 0:00:16]} 8. Qxd4 {[%emt 0:00:09]} Bg7 {[%emt 0:00:13]} 9. Be3 {[%emt 0:00:05]} O-O {[%emt 0:00:21]} 10. Qd2 {[%emt 0:00:06]} Be6 {[%emt 0:02:13]} 11. O-O {[%emt 0:00:32]} Qa5 {[%emt 0:00:57]} 12. Rac1 {[%emt 0:02:37]} Rfc8 {[%emt 0:01:09]} 13. b3 {[%emt 0:02:46]} a6 {[%emt 0:01:33]} 14. f4 {[%emt 0:06:00]} b5 {[%emt 0:15:55]} 15. f5 {[%emt 0:01:35]} Bd7 {[%emt 0:06:33]} 16. fxg6 {[%emt 0:01:07]} hxg6 {[%emt 0:00:26]} 17. e5 {[%emt 0:00:45]} b4 {[%emt 0:03:17]} 18. exf6 {[%emt 0:03:36]} bxc3 {[%emt 0:00:47]} 19. Rxc3 {[%emt 0:03:52]} Bxf6 {[%emt 0:04:53]} 20. Bd4 {[%emt 0:00:37]} Bxd4+ {[%emt 0:01:32]} 21. Qxd4 {[%emt 0:00:10]} Qc5 {[%emt 0:00:32]} 22. Rd1 {[%emt 0:00:38]} Be6 {[%emt 0:04:26]} 23. Qxc5 {[%emt 0:02:34]} dxc5 {[%emt 0:03:56]} 24. Bf3 {[%emt 0:00:15]} Ra7 {[%emt 0:01:07]} 25. Rcd3 {[%emt 0:04:51]} a5 {[%emt 0:01:40]} 26. Rd8+ {[%emt 0:00:12]} Rxd8 {[%emt 0:01:29]} 27. Rxd8+ {[%emt 0:00:01]} Kg7 {[%emt 0:00:11]} 28. Rb8 {[%emt 0:00:29]} a4 {[%emt 0:02:36]} 29. Rb5 {[%emt 0:00:29]} axb3 {[%emt 0:02:19]} 30. axb3 {[%emt 0:00:03]} Rc7 {[%emt 0:01:38]} 31. Kf2 {[%emt 0:00:27]} Kf6 {[%emt 0:03:36]} 32. Ke3 {[%emt 0:01:14]} Bd7 {[%emt 0:02:11]} 33. Ra5 {[%emt 0:02:16]} e5 {[%emt 0:02:49]} 34. Ra6+ {[%emt 0:01:26]} Ke7 {[%emt 0:02:29]} 35. Bd5 {[%emt 0:03:00]} Rc8 {[%emt 0:03:07]} 36. Rb6 {[%emt 0:01:01]} Rc7 {[%emt 0:02:26]} 37. Ra6 {[%emt 0:02:16]} Rc8 {[%emt 0:00:07]} 38. Kd3 {[%emt 0:00:27]} f6 {[%emt 0:02:03]} 39. h4 {[%emt 0:04:57]} Rb8 {[%emt 0:08:57]} 40. Kc3 {[%emt 0:00:41]} Rh8 {[%emt 0:00:28]} 41. g3 {[%emt 0:00:37]} g5 {[%emt 0:00:20]} 42. hxg5 {[%emt 0:00:38]} fxg5 {[%emt 0:00:09]} 43. Rg6 {[%emt 0:01:22]} g4 {[%emt 0:00:51]} 44. b4 {[%emt 0:00:20]} cxb4+ {[%emt 0:01:28]} 45. Kxb4 {[%emt 0:00:06]} Rb8+ {[%emt 0:03:24]} 46. Kc3 {[%emt 0:01:09]} Rb1 {[%emt 0:00:59]} 47. c5 {[%emt 0:02:31]} Rg1 {[%emt 0:00:31]} 48. Rg7+ {[%emt 0:00:48]} Kd8 {[%emt 0:00:26]} 49. c6 {[%emt 0:00:11]} Bxc6 {[%emt 0:00:35]} 50. Bxc6 {[%emt 0:00:17]} Rc1+ {[%emt 0:00:15]} 51. Kd3 {[%emt 0:00:04]} Rxc6 {[%emt 0:00:09]} 52. Ke4 {[%emt 0:00:13]} Rc3 {[%emt 0:02:13]} 53. Rxg4 {[%emt 0:00:07]} Rc4+ {[%emt 0:00:16]} 54. Kf5 {[%emt 0:00:06]} Rxg4 {[%emt 0:00:19]} 55. Kxg4 {[%emt 0:00:02]} Ke7 {[%emt 0:00:12]} 56. Kf5 {[%emt 0:00:03]} Kf7 {[%emt 0:00:15]} 57. Kxe5 {[%emt 0:00:07]} Kg6 {[%emt 0:00:08]} 58. Ke4 1/2-1/2

[Event "17th Delhi GM Open 2019"]
[Site "Delhi"]
[Date "2019.01.12"]
[Round "6"]
[White "Khusenkhojaev, Muhammad"]
[Black "Kurbonboeva, Sarvinoz"]
[Result "1/2-1/2"]
[ECO "A05"]
[WhiteElo "2455"]
[BlackElo "2214"]
[Annotator "ChessBase"]
[PlyCount "85"]
[EventDate "2019.01.09"]
[EventType "swiss"]
[EventCountry "IND"]
[SourceTitle "playchess.com"]
[Source "ChessBase"]
[SourceQuality "1"]
[TimeControl "5400+30"]

1. Nf3 {[%emt 0:00:21]} Nf6 {[%emt 0:00:10]} 2. c4 {[%emt 0:00:06]} g6 {[%emt 0:00:56]} 3. g3 {[%emt 0:00:07]} c6 {[%emt 0:02:49]} 4. b3 {[%emt 0:00:47]} d5 {[%emt 0:00:45]} 5. Bb2 {[%emt 0:00:14]} Bg7 {[%emt 0:00:59]} 6. Bg2 {[%emt 0:00:07]} O-O {[%emt 0:15:33]} 7. O-O {[%emt 0:00:37]} dxc4 {[%emt 0:00:38]} 8. bxc4 {[%emt 0:00:10]} c5 {[%emt 0:00:03]} 9. d4 {[%emt 0:01:28]} Qb6 10. Qb3 {[%emt 0:03:30]} Nfd7 {[%emt 0:15:07]} 11. Nc3 {[%emt 0:03:14]} Nc6 {[%emt 0:02:12]} 12. dxc5 {[%emt 0:07:44]} Qxb3 {[%emt 0:04:17]} 13. axb3 {[%emt 0:00:16]} Nxc5 {[%emt 0:00:04]} 14. Ra3 {[%emt 0:02:55]} Bf5 {[%emt 0:08:23]} 15. Ba1 {[%emt 0:08:06]} Rfd8 {[%emt 0:10:22]} 16. Na4 {[%emt 0:19:48]} Nxa4 {[%emt 0:02:25]} 17. Rxa4 {[%emt 0:00:07]} Bc2 {[%emt 0:02:10]} 18. Bxg7 {[%emt 0:04:16]} Kxg7 {[%emt 0:00:14]} 19. Ra3 {[%emt 0:00:46]} Bd1 {[%emt 0:04:15]} 20. Re1 {[%emt 0:03:53]} h6 {[%emt 0:11:39]} 21. e3 {[%emt 0:01:47]} e6 {[%emt 0:03:53]} 22. c5 {[%emt 0:00:53]} Rac8 {[%emt 0:02:26]} 23. Ra1 {[%emt 0:16:43]} Bxb3 {[%emt 0:00:32]} 24. Reb1 {[%emt 0:00:08]} Bd5 {[%emt 0:02:34]} 25. Rxb7 {[%emt 0:00:14]} Na5 {[%emt 0:04:34]} 26. Rxa7 {[%emt 0:06:25]} Nb3 {[%emt 0:00:05]} 27. Re1 {[%emt 0:00:57]} Rxc5 {[%emt 0:05:10]} 28. g4 {[%emt 0:02:11]} Bc6 {[%emt 0:00:43]} 29. h3 {[%emt 0:01:27]} Rd7 {[%emt 0:00:26]} 30. Ra6 {[%emt 0:01:28]} Bxf3 {[%emt 0:00:34]} 31. Bxf3 {[%emt 0:00:09]} Rc1 {[%emt 0:00:22]} 32. Rxc1 {[%emt 0:00:55]} Nxc1 {[%emt 0:00:01]} 33. Ra1 {[%emt 0:01:14]} Nd3 {[%emt 0:00:10]} 34. Be2 {[%emt 0:00:05]} Nb4 {[%emt 0:00:36]} 35. Rb1 {[%emt 0:00:40]} Nd5 {[%emt 0:00:06]} 36. Bf3 {[%emt 0:00:16]} Kf6 {[%emt 0:00:31]} 37. Kg2 {[%emt 0:00:21]} g5 {[%emt 0:00:42]} 38. Rb5 {[%emt 0:00:10]} Ne7 {[%emt 0:00:21]} 39. h4 {[%emt 0:02:12]} Ng6 {[%emt 0:01:28]} 40. h5 {[%emt 0:00:50]} Nh4+ {[%emt 0:00:14]} 41. Kg3 {[%emt 0:00:06]} Nxf3 {[%emt 0:00:05]} 42. Kxf3 {[%emt 0:00:05]} Rd2 {[%emt 0:00:32]} 43. Ra5 {[%emt 0:00:37] Ke5 Ke4+} 1/2-1/2